bitfinex/quotes_BTCUSD_20230906
["timestamp","ask_amount","ask_price","bid_price","bid_amount"]
[1693999636658,0.02,25765.0,25764.0,0.1208]
[1693999636858,0.02,25765.0,25764.0,2.449628]
[1693999637101,0.18069467,25765.0,25764.0,2.81088433]
[1693999637477,0.20469467,25765.0,25764.0,2.81088433]
[1693999638861,0.22869467,25765.0,25764.0,2.81088433]
[1693999639062,0.20469467,25765.0,25764.0,2.81088433]
[1693999639391,0.20469467,25765.0,25764.0,2.81188433]
[1693999639794,0.22869467,25765.0,25764.0,2.81288433]
[1693999640050,0.048,25765.0,25764.0,2.25752047]
[1693999640254,0.048,25765.0,25764.0,3.15805102]
[1693999640467,0.048,25765.0,25764.0,3.29767894]
[1693999641088,0.024,25765.0,25764.0,3.15705102]
[1693999641471,0.024,25765.0,25764.0,3.23035855]
[1693999641608,0.024,25765.0,25764.0,3.61700382]
[1693999641820,0.08929475,25768.0,25764.0,3.61600382]
[1693999642015,0.08929475,25768.0,25767.0,0.1208]
[1693999642216,0.08929475,25768.0,25767.0,1.673172]
[1693999642502,0.0398,25768.0,25767.0,1.673172]
[1693999643188,0.0638,25768.0,25767.0,1.674172]
[1693999643386,0.0878,25768.0,25767.0,1.674172]
[1693999643610,0.0638,25768.0,25767.0,1.674172]
[1693999643816,0.0878,25768.0,25767.0,1.675172]
[1693999645016,0.0878,25768.0,25767.0,1.48108707]
[1693999645426,0.0878,25768.0,25767.0,0.002]
[1693999645639,0.0878,25768.0,25767.0,0.778186]
[1693999646281,0.0878,25768.0,25767.0,2.18087909]
[1693999648784,0.0878,25768.0,25767.0,2.19088793]
[1693999649188,0.0878,25768.0,25767.0,2.31168793]
[1693999656742,0.23168693,25768.0,25767.0,2.31168793]
[1693999659331,0.23168693,25768.0,25767.0,2.40477321]
[1693999661753,0.23168693,25768.0,25767.0,2.43542515]
[1693999662156,0.18368693,25768.0,25767.0,2.43542515]
[1693999662372,0.23168693,25768.0,25767.0,2.43742515]
[1693999662793,0.20768693,25768.0,25767.0,2.43642515]
[1693999663225,0.22668693,25768.0,25767.0,2.43742515]
[1693999665185,0.22668693,25768.0,25767.0,2.57705307]
[1693999665597,0.22668693,25768.0,25767.0,3.03593426]
[1693999665856,0.22668693,25768.0,25767.0,3.03574696]
[1693999668088,0.22668693,25768.0,25767.0,2.57686577]
[1693999668316,0.22668693,25768.0,25767.0,2.54621383]
[1693999668524,0.22668693,25768.0,25767.0,3.00509473]
[1693999669100,0.22668693,25768.0,25767.0,2.54621383]
[1693999669477,0.22668693,25768.0,25767.0,3.00509459]
[1693999669694,0.22668693,25768.0,25767.0,2.91219661]
[1693999670194,0.22668693,25768.0,25767.0,3.00512735]
[1693999670559,0.22668693,25768.0,25767.0,2.91219661]
[1693999672583,0.22668693,25768.0,25767.0,3.09836718]
[1693999673202,0.22668693,25768.0,25767.0,2.91219661]
[1693999673883,0.22668693,25768.0,25767.0,3.09836718]
[1693999674707,0.22668693,25768.0,25767.0,2.95873926]
[1693999675323,0.0828,25768.0,25767.0,2.95873926]
[1693999676191,0.0828,25768.0,25767.0,3.09833548]
[1693999676821,0.0828,25768.0,25767.0,2.95873926]
[1693999677193,0.0828,25768.0,25767.0,3.09835228]
[1693999677431,0.0828,25768.0,25767.0,2.95873926]
[1693999678238,0.0828,25768.0,25767.0,3.09836764]
[1693999679164,0.0828,25768.0,25767.0,2.91219707]
[1693999679566,0.0828,25768.0,25767.0,3.09836764]
[1693999681516,0.0828,25768.0,25767.0,2.95873926]
[1693999682468,0.0828,25768.0,25767.0,3.09844256]
[1693999682674,0.0828,25768.0,25767.0,2.95873926]
[1693999683152,0.0828,25768.0,25767.0,3.14873926]
[1693999683738,0.0828,25768.0,25767.0,3.28847966]
[1693999684138,0.0828,25768.0,25767.0,3.31935534]
[1693999684592,0.0828,25768.0,25767.0,3.13318477]
[1693999686567,0.0828,25768.0,25767.0,2.62776364]
[1693999691606,0.0828,25768.0,25767.0,2.59688796]
[1693999694978,0.0628,25768.0,25767.0,2.59688796]
[1693999695267,0.0628,25768.0,25767.0,4.22109672]
[1693999698539,0.0628,25768.0,25767.0,4.31426331]
[1693999700111,0.0628,25768.0,25767.0,4.60774199]
[1693999700311,0.0628,25768.0,25767.0,4.65417216]
[1693999701116,0.0628,25768.0,25767.0,5.67083286]
[1693999701317,0.0628,25768.0,25767.0,5.97083286]
[1693999702365,0.0628,25768.0,25767.0,6.20355629]
[1693999704591,0.0628,25768.0,25767.0,6.38966067]
[1693999705942,0.0580108,25768.0,25767.0,6.15693724]
[1693999709598,0.0580108,25768.0,25767.0,6.29647147]
[1693999710079,0.0580108,25768.0,25767.0,5.17768177]
[1693999710276,0.0580108,25768.0,25767.0,6.29630529]
[1693999712853,0.0580108,25768.0,25767.0,6.32778845]
[1693999714099,0.0390108,25768.0,25767.0,6.32678845]
[1693999714303,0.0150108,25768.0,25767.0,6.32578845]
[1693999714507,0.0290108,25768.0,25767.0,6.32778845]
[1693999716045,0.0290108,25768.0,25767.0,6.14168407]
[1693999716650,0.0290108,25768.0,25767.0,6.20780407]
[1693999716825,0.0290108,25768.0,25767.0,6.20792407]
[1693999717052,0.0290108,25768.0,25767.0,6.14168407]
[1693999720846,0.0290108,25768.0,25767.0,6.32778845]
[1693999721049,0.0290108,25768.0,25767.0,6.39318845]
[1693999721317,0.0290108,25768.0,25767.0,6.32778845]
[1693999721495,0.0290108,25768.0,25767.0,6.40164845]
[1693999721711,0.0290108,25768.0,25767.0,6.40254845]
[1693999722085,0.0290108,25768.0,25767.0,6.40242845]
[1693999722297,0.0290108,25768.0,25767.0,6.40218845]
[1693999722495,0.0290108,25768.0,25767.0,6.26259422]
[1693999722712,0.0290108,25768.0,25767.0,6.26367422]
[1693999722876,0.0290108,25768.0,25767.0,6.26313422]
[1693999723080,0.0290108,25768.0,25767.0,6.26301422]
[1693999723303,0.0290108,25768.0,25767.0,6.26289422]
[1693999723545,0.0290108,25768.0,25767.0,6.40209346]
[1693999723752,0.0290108,25768.0,25767.0,6.40203346]
[1693999723954,0.0290108,25768.0,25767.0,6.26235422]
[1693999724157,0.0290108,25768.0,25767.0,6.26223422]
[1693999724336,0.0290108,25768.0,25767.0,6.26199422]
[1693999724535,0.0290108,25768.0,25767.0,6.4016746]
[1693999724746,0.0290108,25768.0,25767.0,6.26259422]
[1693999724954,0.0290108,25768.0,25767.0,6.26247422]
[1693999725157,0.0290108,25768.0,25767.0,6.40191671]
[1693999725366,0.0290108,25768.0,25767.0,6.40131671]
[1693999725562,0.0290108,25768.0,25767.0,6.26169422]
[1693999725770,0.0290108,25768.0,25767.0,6.26163422]
[1693999725995,0.0290108,25768.0,25767.0,6.26157422]
[1693999726212,0.0290108,25768.0,25767.0,6.4017387]
[1693999726417,0.0290108,25768.0,25767.0,6.28823422]
[1693999726646,0.0290108,25768.0,25767.0,6.52821765]
[1693999726848,0.0290108,25768.0,25767.0,6.53391765]
[1693999727052,0.0290108,25768.0,25767.0,6.53031765]
[1693999727254,0.0290108,25768.0,25767.0,6.53127765]
[1693999727386,0.0290108,25768.0,25767.0,6.53307765]
[1693999727590,0.0290108,25768.0,25767.0,6.53313765]
[1693999727802,0.0290108,25768.0,25767.0,6.43141327]
[1693999728000,0.0290108,25768.0,25767.0,6.43159327]
[1693999728412,0.0290108,25768.0,25767.0,6.43177327]
[1693999728582,0.0290108,25768.0,25767.0,6.43171327]
[1693999728783,0.0290108,25768.0,25767.0,6.43129327]
[1693999729031,0.0290108,25768.0,25767.0,6.42985327]
[1693999729183,0.0290108,25768.0,25767.0,6.42343327]
[1693999729584,0.0290108,25768.0,25767.0,6.42409327]
[1693999729789,0.0290108,25768.0,25767.0,6.42373327]
[1693999730199,0.0290108,25768.0,25767.0,6.42415327]
[1693999730416,0.0290108,25768.0,25767.0,6.42535327]
[1693999730605,0.0290108,25768.0,25767.0,6.42499327]
[1693999730808,0.0290108,25768.0,25767.0,6.42553327]
[1693999731018,0.0290108,25768.0,25767.0,6.42331327]
[1693999731216,0.0290108,25768.0,25767.0,6.42397327]
[1693999731445,0.0290108,25768.0,25767.0,6.42469327]
[1693999731649,0.0290108,25768.0,25767.0,6.42517327]
[1693999732051,0.0290108,25768.0,25767.0,6.42235327]
[1693999732252,0.0290108,25768.0,25767.0,6.41743327]
[1693999732454,0.0290108,25768.0,25767.0,6.40117327]
[1693999732674,0.0290108,25768.0,25767.0,6.40081327]
[1693999732885,0.0290108,25768.0,25767.0,6.33487327]
[1693999736933,0.0290108,25768.0,25767.0,6.10214984]
[1693999737133,0.0290108,25768.0,25767.0,6.16976984]
[1693999737357,0.0290108,25768.0,25767.0,6.16964984]
[1693999737549,0.0290108,25768.0,25767.0,6.17072984]
[1693999737892,0.0290108,25768.0,25767.0,6.17078984]
[1693999738102,0.0290108,25768.0,25767.0,6.17066984]
[1693999738476,0.0290108,25768.0,25767.0,6.17006984]
[1693999738622,0.0290108,25768.0,25767.0,6.16976984]
[1693999738826,0.0290108,25768.0,25767.0,6.17942984]
[1693999739052,0.0290108,25768.0,25767.0,6.17810984]
[1693999739247,0.0290108,25768.0,25767.0,6.17768984]
[1693999739483,0.0290108,25768.0,25767.0,6.23601077]
[1693999739688,0.0290108,25768.0,25767.0,6.23535077]
[1693999739915,0.0290108,25768.0,25767.0,6.23529077]
[1693999740119,0.0290108,25768.0,25767.0,6.23517077]
[1693999740275,0.0290108,25768.0,25767.0,6.23595077]
[1693999740606,0.0290108,25768.0,25767.0,6.23421077]
[1693999740846,0.0290108,25768.0,25767.0,6.23415077]
[1693999741049,0.0290108,25768.0,25767.0,6.23229077]
[1693999741251,0.0290108,25768.0,25767.0,6.23235077]
[1693999741473,0.0290108,25768.0,25767.0,6.23223077]
[1693999741691,0.0290108,25768.0,25767.0,6.23229077]
[1693999742015,0.0290108,25768.0,25767.0,6.23205077]
[1693999742237,0.0290108,25768.0,25767.0,6.23193077]
[1693999742432,0.0290108,25768.0,25767.0,6.15319077]
[1693999742697,0.0290108,25768.0,25767.0,6.15991077]
[1693999742872,0.0290108,25768.0,25767.0,6.15967077]
[1693999743081,0.0290108,25768.0,25767.0,6.15979077]
[1693999743244,0.0290108,25768.0,25767.0,6.15949077]
[1693999743440,0.0290108,25768.0,25767.0,6.15823077]
[1693999743640,0.0290108,25768.0,25767.0,6.15757077]
[1693999744066,0.0290108,25768.0,25767.0,6.15871077]
[1693999744268,0.0150108,25768.0,25767.0,6.15701077]
[1693999744508,0.0170108,25768.0,25767.0,6.16913077]
[1693999744745,0.0180108,25768.0,25767.0,6.17483077]
[1693999744968,0.0180108,25768.0,25767.0,6.17477077]
[1693999745190,0.0170108,25768.0,25767.0,6.16817077]
[1693999745392,0.0180108,25768.0,25767.0,6.17411077]
[1693999745575,0.0180108,25768.0,25767.0,6.17405077]
[1693999745772,0.0180108,25768.0,25767.0,6.17093077]
[1693999745908,0.0180108,25768.0,25767.0,6.17081077]
[1693999746108,0.0180108,25768.0,25767.0,6.17099077]
[1693999746308,0.0180108,25768.0,25767.0,6.17093077]
[1693999746546,0.0180108,25768.0,25767.0,6.17567077]
[1693999746749,0.0180108,25768.0,25767.0,6.17573077]
[1693999747009,0.0180108,25768.0,25767.0,6.17561077]
[1693999747212,0.0180108,25768.0,25767.0,6.17579077]
[1693999747411,0.0180108,25768.0,25767.0,6.17573077]
[1693999747634,0.0180108,25768.0,25767.0,6.17561077]
[1693999747830,0.0180108,25768.0,25767.0,6.17471077]
[1693999748035,0.0180108,25768.0,25767.0,6.17423077]
[1693999748265,0.0180108,25768.0,25767.0,6.17483077]
[1693999748467,0.0180108,25768.0,25767.0,6.17393077]
[1693999748684,0.0180108,25768.0,25767.0,6.17435077]
[1693999748871,0.0180108,25768.0,25767.0,6.17591077]
[1693999749020,0.0180108,25768.0,25767.0,6.17597077]
[1693999749236,0.0180108,25768.0,25767.0,6.17561077]
[1693999749412,0.0180108,25768.0,25767.0,6.17777077]
[1693999749608,0.0180108,25768.0,25767.0,6.17651077]
[1693999749813,0.0180108,25768.0,25767.0,6.17675077]
[1693999750015,0.0180108,25768.0,25767.0,6.17663077]
[1693999750273,0.0180108,25768.0,25767.0,6.8230071]
[1693999750476,0.0180108,25768.0,25767.0,6.8300871]
[1693999750653,0.0180108,25768.0,25767.0,6.18797077]
[1693999750860,0.0180108,25768.0,25767.0,6.18815077]
[1693999751208,0.0180108,25768.0,25767.0,6.19085077]
[1693999751407,0.0180108,25768.0,25767.0,6.19091077]
[1693999751625,0.0180108,25768.0,25767.0,6.18989077]
[1693999751842,0.0180108,25768.0,25767.0,5.07114725]
[1693999752047,0.0180108,25768.0,25767.0,6.18928654]
[1693999752250,0.0180108,25768.0,25767.0,6.18940654]
[1693999752429,0.0180108,25768.0,25767.0,6.19036654]
[1693999752655,0.0180108,25768.0,25767.0,6.84094118]
[1693999752852,0.1756,25771.0,25768.0,0.08]
[1693999753087,0.0198,25771.0,25770.0,0.1608]
[1693999753289,0.0198,25771.0,25770.0,4.75317125]
[1693999753492,0.0198,25771.0,25770.0,4.83669549]
[1693999753701,0.0198,25771.0,25770.0,4.83597549]
[1693999753900,0.0358,25771.0,25770.0,4.90710558]
[1693999754103,0.0358,25771.0,25770.0,4.91388558]
[1693999754314,0.0238,25771.0,25770.0,4.91328558]
[1693999754517,0.0218,25771.0,25770.0,5.16218486]
[1693999754726,0.0238,25771.0,25770.0,5.18284486]
[1693999754925,0.0238,25771.0,25770.0,5.18278486]
[1693999755132,0.0238,25771.0,25770.0,5.18272486]
[1693999755341,0.0238,25771.0,25770.0,5.18548486]
[1693999755540,0.0238,25771.0,25770.0,5.18296486]
[1693999755775,0.0238,25771.0,25770.0,5.18344486]
[1693999755978,0.0238,25771.0,25770.0,5.18356486]
[1693999756183,0.0238,25771.0,25770.0,5.18644486]
[1693999756387,0.0238,25771.0,25770.0,5.18596486]
[1693999756739,0.0238,25771.0,25770.0,5.18722486]
[1693999756945,0.0238,25771.0,25770.0,5.18500486]
[1693999757143,0.0238,25771.0,25770.0,4.95190558]
[1693999757497,0.0238,25771.0,25770.0,5.18788283]
[1693999757649,0.0238,25771.0,25770.0,5.20842283]
[1693999757854,0.0238,25771.0,25770.0,5.20896283]
[1693999758051,0.0238,25771.0,25770.0,4.97646558]
[1693999758255,0.0238,25771.0,25770.0,5.20798519]
[1693999758430,0.0238,25771.0,25770.0,5.20666519]
[1693999758630,0.0238,25771.0,25770.0,5.20348519]
[1693999759021,0.0238,25771.0,25770.0,5.19758741]
[1693999759192,0.0238,25771.0,25770.0,5.19752741]
[1693999759704,0.0238,25771.0,25770.0,5.20298741]
[1693999760109,0.0238,25771.0,25770.0,4.9804078]
[1693999760323,0.0238,25771.0,25770.0,4.9780078]
[1693999760526,0.0238,25771.0,25770.0,4.9789678]
[1693999760865,0.0238,25771.0,25770.0,4.9791478]
[1693999761066,0.0238,25771.0,25770.0,4.9800478]
[1693999761338,0.0238,25771.0,25770.0,5.21195672]
[1693999761551,0.0238,25771.0,25770.0,5.20895672]
[1693999761739,0.0238,25771.0,25770.0,4.9761478]
[1693999761940,0.0238,25771.0,25770.0,4.9763278]
[1693999762147,0.0238,25771.0,25770.0,4.9775278]
[1693999762372,0.0238,25771.0,25770.0,5.21006757]
[1693999762503,0.0238,25771.0,25770.0,5.21115021]
[1693999762711,0.0238,25771.0,25770.0,4.9787878]
[1693999762956,0.0238,25771.0,25770.0,5.2110904]
[1693999763277,0.0238,25771.0,25770.0,5.2122904]
[1693999763455,0.0238,25771.0,25770.0,6.5721204]
[1693999763657,0.0238,25771.0,25770.0,6.4048678]
[1693999763811,0.0238,25771.0,25770.0,6.4049878]
[1693999764010,0.0238,25771.0,25770.0,6.4058878]
[1693999764228,0.0238,25771.0,25770.0,6.43410554]
[1693999764428,0.0238,25771.0,25770.0,6.43344554]
[1693999764629,0.0238,25771.0,25770.0,6.43248554]
[1693999764861,0.0238,25771.0,25770.0,6.42912554]
[1693999765055,0.0238,25771.0,25770.0,5.46911554]
[1693999765208,0.0238,25771.0,25770.0,5.23056462]
[1693999765419,0.0238,25771.0,25770.0,5.50559633]
[1693999765616,0.0238,25771.0,25770.0,5.50595633]
[1693999765882,0.0238,25771.0,25770.0,5.50559633]
[1693999766015,0.0238,25771.0,25770.0,5.50529633]
[1693999766222,0.0238,25771.0,25770.0,5.50451633]
[1693999766424,0.0238,25771.0,25770.0,5.43671633]
[1693999766843,0.0238,25771.0,25770.0,5.50271633]
[1693999767050,0.0238,25771.0,25770.0,5.50337633]
[1693999767293,0.0238,25771.0,25770.0,5.50379633]
[1693999767511,0.0238,25771.0,25770.0,5.50373633]
[1693999767796,0.0238,25771.0,25770.0,5.50343633]
[1693999768001,0.0238,25771.0,25770.0,5.50337633]
[1693999768223,0.0238,25771.0,25770.0,5.43671633]
[1693999771328,0.0238,25771.0,25770.0,5.15389133]
[1693999775285,0.0238,25771.0,25770.0,5.45146333]
[1693999777093,0.0238,25771.0,25770.0,5.15389133]
[1693999779165,0.0238,25771.0,25770.0,5.43690233]
[1693999779582,0.0238,25771.0,25770.0,5.20446325]
[1693999779833,0.0238,25771.0,25770.0,5.43693867]
[1693999780452,0.0238,25771.0,25770.0,5.20446325]
[1693999781050,0.0238,25771.0,25770.0,4.92145225]
[1693999782955,0.0238,25771.0,25770.0,5.15394796]
[1693999783614,0.0238,25771.0,25770.0,5.13394796]
[1693999786583,0.0238,25771.0,25770.0,4.96668707]
[1693999786894,0.0238,25771.0,25770.0,5.08748707]
[1693999787493,0.0238,25771.0,25770.0,5.86358307]
[1693999792726,0.03815865,25771.0,25770.0,5.86358307]
[1693999793136,0.03815865,25771.0,25770.0,4.74513707]
[1693999793382,0.03815865,25771.0,25770.0,5.863663]
[1693999796658,0.03815865,25771.0,25770.0,5.83220526]
[1693999797302,0.0238,25771.0,25770.0,5.83220526]
[1693999802440,0.02141083,25771.0,25770.0,5.83220526]
[1693999803459,0.11360619,25771.0,25770.0,5.83220526]
[1693999805934,0.02141083,25771.0,25770.0,5.87866615]
[1693999806144,0.02141083,25771.0,25770.0,5.64617044]
[1693999806539,0.02141083,25771.0,25770.0,5.74850138]
[1693999806742,0.02141083,25771.0,25770.0,5.75498138]
[1693999807010,0.02141083,25771.0,25770.0,5.75372138]
[1693999807197,0.02141083,25771.0,25770.0,5.74550138]
[1693999807536,0.02141083,25771.0,25770.0,5.74556138]
[1693999807741,0.02141083,25771.0,25770.0,5.67794138]
[1693999813084,0.02141083,25771.0,25770.0,4.55941545]
[1693999813235,0.02141083,25771.0,25770.0,5.74447121]
[1693999813447,0.02141083,25771.0,25770.0,5.74387121]
[1693999813647,0.02141083,25771.0,25770.0,5.74369121]
[1693999814025,0.02141083,25771.0,25770.0,5.74351121]
[1693999814221,0.02141083,25771.0,25770.0,5.74339121]
[1693999814573,0.02141083,25771.0,25770.0,5.67787121]
[1693999815195,0.02141083,25771.0,25770.0,5.74309121]
[1693999815402,0.02141083,25771.0,25770.0,5.67787121]
[1693999816382,0.03221367,25773.0,25770.0,5.74321121]
[1693999816582,0.1293442,25774.0,25772.0,0.44644077]
[1693999816805,0.1293442,25774.0,25773.0,4.82296384]
[1693999816946,0.04095778,25775.0,25773.0,4.82296384]
[1693999817195,0.04095778,25775.0,25774.0,0.1208]
[1693999817398,0.04095778,25775.0,25774.0,2.448725]
[1693999819229,0.06195778,25775.0,25774.0,2.450725]
[1693999819426,0.06195778,25775.0,25774.0,2.452725]
[1693999819427,0.08595778,25775.0,25774.0,2.452725]
[1693999821092,0.10823485,25775.0,25774.0,2.452725]
[1693999822072,0.10823485,25775.0,25774.0,2.4605265]
[1693999823327,0.10823485,25775.0,25774.0,2.6505265]
[1693999825443,0.10823485,25775.0,25774.0,1.8745515]
[1693999825647,0.10823485,25775.0,25774.0,0.2018015]
[1693999829478,0.10823485,25775.0,25774.0,0.9777765]
[1693999830361,0.10823485,25775.0,25774.0,0.2018015]
[1693999837528,0.88417985,25775.0,25774.0,0.2018015]
[1693999838688,2.51379278,25775.0,25774.0,0.2018015]
[1693999838898,1.97606714,25775.0,25774.0,0.194]
[1693999839308,1.85526714,25775.0,25774.0,0.194]
[1693999843393,2.63121214,25775.0,25774.0,0.194]
[1693999844011,2.51379278,25775.0,25774.0,0.194]
[1693999845977,2.49379278,25775.0,25774.0,0.194]
[1693999846184,2.51379278,25775.0,25774.0,0.194]
[1693999849634,1.73784778,25775.0,25774.0,0.194]
[1693999850123,2.51379278,25775.0,25774.0,0.194]
[1693999850675,2.49379278,25775.0,25774.0,0.194]
[1693999853133,2.61459278,25775.0,25774.0,0.194]
[1693999856777,1.83864778,25775.0,25774.0,0.194]
[1693999857655,2.61459278,25775.0,25774.0,0.194]
[1693999859342,2.49379278,25775.0,25774.0,0.194]
[1693999865078,2.63459278,25775.0,25774.0,0.194]
[1693999865286,3.02123805,25775.0,25774.0,0.194]
[1693999865464,3.06123805,25775.0,25774.0,0.194]
[1693999865661,3.15438022,25775.0,25774.0,0.194]
[1693999866360,3.13038022,25775.0,25774.0,0.192]
[1693999866539,3.13338022,25775.0,25774.0,0.19]
[1693999866721,3.13338022,25775.0,25774.0,0.191]
[1693999866920,3.04023805,25775.0,25774.0,0.191]
[1693999867140,3.06423805,25775.0,25774.0,0.191]
[1693999867346,3.01623805,25775.0,25774.0,0.19]
[1693999867521,3.04023805,25775.0,25774.0,0.191]
[1693999867729,3.06423805,25775.0,25774.0,0.191]
[1693999867939,3.06423805,25775.0,25774.0,0.076769]
[1693999869288,3.04023805,25775.0,25774.0,0.076769]
[1693999869495,3.06423805,25775.0,25774.0,0.076769]
[1693999872366,3.15738022,25775.0,25774.0,0.076769]
[1693999873097,3.06423805,25775.0,25774.0,0.076769]
[1693999873312,3.15738022,25775.0,25774.0,0.076769]
[1693999873496,3.06423805,25775.0,25774.0,0.076769]
[1693999876297,3.06423805,25775.0,25774.0,0.001]
[1693999876476,3.21963805,25775.0,25774.0,0.001]
[1693999881782,3.31278022,25775.0,25774.0,0.001]
[1693999885407,3.33578022,25775.0,25774.0,0.001]
[1693999886946,3.33578022,25775.0,25774.0,0.081]
[1693999892590,3.33578022,25775.0,25774.0,0.111972]
[1693999893480,3.33578022,25775.0,25774.0,0.081]
[1693999895106,2.16749305,25775.0,25774.0,0.081]
[1693999895317,1.00490278,25775.0,25774.0,0.081]
[1693999895925,1.78084778,25775.0,25774.0,0.081]
[1693999898457,0.02,25772.0,25771.0,1.552093]
[1693999899821,0.044,25772.0,25771.0,1.553118]
[1693999899951,0.06515778,25772.0,25771.0,1.553118]
[1693999900158,0.21671852,25772.0,25771.0,1.553118]
[1693999903161,0.21671852,25772.0,25771.0,0.777052]
[1693999903749,0.21671852,25772.0,25771.0,0.001]
[1693999904183,0.21671852,25772.0,25771.0,0.777066]
[1693999905371,0.21671852,25772.0,25771.0,2.449998]
[1693999905372,0.06915778,25772.0,25771.0,2.449998]
[1693999905591,0.048,25772.0,25771.0,2.54300426]
[1693999906297,0.04508,25772.0,25771.0,2.54300426]
[1693999906504,0.04508,25772.0,25771.0,2.449998]
[1693999906914,0.04508,25772.0,25771.0,2.529998]
[1693999908219,0.04508,25772.0,25771.0,2.449998]
[1693999929907,0.04508,25772.0,25771.0,2.54300426]
[1693999930105,0.04545,25772.0,25771.0,2.54300426]
[1693999943001,0.04545,25772.0,25771.0,2.68251366]
[1693999945751,0.04545,25772.0,25771.0,3.14129659]
[1693999949843,0.04545,25772.0,25771.0,3.04829033]
[1693999951662,0.04545,25772.0,25771.0,3.09479346]
[1693999952794,0.04545,25772.0,25771.0,3.23431414]
[1693999958676,0.06545,25772.0,25771.0,3.23431414]
[1693999961204,0.04849,25772.0,25771.0,3.62095941]
[1693999961804,0.00974,25772.0,25771.0,3.62095941]
[1693999965589,0.00974,25772.0,25771.0,4.7394752]
[1693999966968,0.16625778,25773.0,25771.0,4.7394752]
[1693999967175,0.00974,25772.0,25771.0,3.04137648]
[1693999967389,0.00974,25772.0,25771.0,4.73946392]
[1693999968627,0.00974,25772.0,25771.0,4.73846392]
[1693999968880,0.00974,25772.0,25771.0,4.74046392]
[1693999969209,0.00974,25772.0,25771.0,4.73846392]
[1693999969444,0.03374,25772.0,25771.0,4.74046392]
[1693999970045,0.03374,25772.0,25771.0,4.60094324]
[1693999972271,0.03374,25772.0,25771.0,4.98758851]
[1693999978314,0.024,25772.0,25771.0,4.98758851]
[1693999978506,0.03374,25772.0,25771.0,4.98758851]
[1693999979012,0.03374,25772.0,25771.0,4.60094324]
[1693999983524,0.03374,25772.0,25771.0,4.60091286]
[1693999994222,0.03374,25772.0,25771.0,4.83342852]
[1693999996359,0.024,25772.0,25771.0,4.83342852]
[1694000001988,0.024,25772.0,25771.0,4.64741599]
[1694000004782,0.024,25772.0,25771.0,5.03406126]
[1694000005192,0.024,25772.0,25771.0,5.33406126]
[1694000017378,0.024,25772.0,25771.0,5.1015456]
[1694000024334,0.024,25772.0,25771.0,5.25064782]
[1694000024542,0.1782,25775.0,25773.0,0.01884222]
[1694000024743,0.0198,25775.0,25774.0,4.91559052]
[1694000024919,0.0198,25775.0,25774.0,5.6743584]
[1694000025428,0.0198,25775.0,25774.0,5.81365806]
[1694000026449,0.0428,25775.0,25774.0,5.81565806]
[1694000026794,0.0578,25775.0,25774.0,5.81665806]
[1694000027084,0.02128,25775.0,25774.0,6.20330333]
[1694000027495,0.02128,25775.0,25774.0,5.82351504]
[1694000028465,0.02128,25775.0,25774.0,6.00927111]
[1694000028919,0.02128,25775.0,25774.0,5.81523889]
[1694000029370,0.02128,25775.0,25774.0,5.62948282]
[1694000032056,0.02128,25775.0,25774.0,5.24283755]
[1694000032260,0.02128,25775.0,25774.0,4.87689207]
[1694000036687,0.02128,25775.0,25774.0,4.73759241]
[1694000037690,0.02128,25775.0,25774.0,4.87689207]
[1694000038127,0.02128,25775.0,25774.0,4.73759241]
[1694000040176,0.02128,25775.0,25774.0,4.87689207]
[1694000045317,0.02128,25775.0,25774.0,5.33559277]
[1694000045517,0.02128,25775.0,25774.0,4.21852276]
[1694000046379,0.02128,25775.0,25774.0,4.12570036]
[1694000048917,0.02128,25775.0,25774.0,5.2440541]
[1694000055729,0.02128,25775.0,25774.0,5.63069937]
[1694000056485,0.02128,25775.0,25774.0,5.81645544]
[1694000057095,0.02128,25775.0,25774.0,6.20310071]
[1694000057296,0.02128,25775.0,25774.0,6.06380105]
[1694000058175,0.02128,25775.0,25774.0,4.94544731]
[1694000058376,0.02128,25775.0,25774.0,6.06377006]
[1694000059645,0.02128,25775.0,25774.0,6.31480737]
[1694000062364,0.02128,25775.0,25774.0,6.1290513]
[1694000069124,0.02128,25775.0,25774.0,6.1864139]
[1694000072555,0.02128,25775.0,25774.0,6.19769269]
[1694000079587,0.02128,25775.0,25774.0,6.17885047]
[1694000079787,0.02128,25775.0,25774.0,6.19769269]
[1694000086960,0.02128,25775.0,25774.0,6.19768302]
[1694000089669,0.02128,25775.0,25774.0,5.50678723]
[1694000089853,0.02128,25775.0,25774.0,6.19765393]
[1694000090630,0.02128,25775.0,25774.0,5.96547017]
[1694000093125,0.02128,25775.0,25774.0,5.99573017]
[1694000094416,0.02128,25775.0,25774.0,6.63784782]
[1694000094613,0.00628,25775.0,25774.0,6.63684782]
[1694000094793,0.00628,25775.0,25774.0,6.98110833]
[1694000095018,0.0198,25776.0,25775.0,0.04910222]
[1694000095223,0.0198,25776.0,25775.0,5.14802378]
[1694000095427,0.0198,25776.0,25775.0,5.15925226]
[1694000096346,0.0228,25776.0,25775.0,5.15925226]
[1694000096517,0.0228,25776.0,25775.0,5.16125226]
[1694000106291,0.0228,25776.0,25775.0,5.16115345]
[1694000112396,0.0228,25776.0,25775.0,5.56955345]
[1694000112595,0.0228,25776.0,25775.0,5.64065345]
[1694000112804,0.0228,25776.0,25775.0,5.64167345]
[1694000113008,0.0228,25776.0,25775.0,5.64137345]
[1694000113206,0.0198,25776.0,25775.0,5.64125345]
[1694000113431,0.0198,25776.0,25775.0,5.65963345]
[1694000113631,0.0208,25776.0,25775.0,5.65951345]
[1694000113828,0.0208,25776.0,25775.0,5.65939345]
[1694000114133,0.0208,25776.0,25775.0,5.65909345]
[1694000114446,0.0208,25776.0,25775.0,5.65879345]
[1694000114606,0.0208,25776.0,25775.0,5.65667345]
[1694000114797,0.0198,25776.0,25775.0,5.64243345]
[1694000115149,0.0238,25776.0,25775.0,5.70739345]
[1694000115356,0.0218,25776.0,25775.0,5.68121345]
[1694000115553,0.0198,25776.0,25775.0,5.68549345]
[1694000115772,0.0238,25776.0,25775.0,5.71037345]
[1694000115921,0.0238,25776.0,25775.0,5.71013345]
[1694000116122,0.0238,25776.0,25775.0,5.71103345]
[1694000116327,0.0238,25776.0,25775.0,5.71091345]
[1694000116722,0.0238,25776.0,25775.0,5.71073345]
[1694000116924,0.0238,25776.0,25775.0,5.71061345]
[1694000117129,0.0238,25776.0,25775.0,6.63091829]
[1694000117329,0.0238,25776.0,25775.0,6.63031829]
[1694000117557,0.0238,25776.0,25775.0,6.63013829]
[1694000117759,0.0238,25776.0,25775.0,6.62989829]
[1694000117968,0.0238,25776.0,25775.0,6.62971829]